[Event "Early-Titled-Tuesday-Blitz-May-28-2024"]
[Site "Chess.com"]
[Date "2024.05.28"]
[Round "2"]
[White "MarkusRagger"]
[Black "Manukyan_Artak"]
[Result "1-0"]
[WhiteElo "2792"]
[BlackElo "2557"]
[TimeControl "180+1"]
[EndTime "8:20:12 PDT"]
[Termination "MarkusRagger won by resignation"]

1. d4 {[%clk 0:03:00.9]} 1... d5 {[%clk 0:02:59.5]} 2. c4 {[%clk 0:03:00.8]}
2... dxc4 {[%clk 0:03:00.4]} 3. Nf3 {[%clk 0:03:00.3]} 3... Nf6 {[%clk
0:02:59.8]} 4. e3 {[%clk 0:03:00.8]} 4... e6 {[%clk 0:02:59.8]} 5. Bxc4 {[%clk
0:03:01.3]} 5... c5 {[%clk 0:03:00.1]} 6. O-O {[%clk 0:03:01.2]} 6... a6 {[%clk
0:03:00.3]} 7. dxc5 {[%clk 0:03:01.7]} 7... Bxc5 {[%clk 0:02:59.1]} 8. Qxd8+
{[%clk 0:03:01.4]} 8... Kxd8 {[%clk 0:03:00]} 9. Be2 {[%clk 0:02:59.1]} 9... Ke7
{[%clk 0:02:59.2]} 10. Nc3 {[%clk 0:02:54.6]} 10... Bd7 {[%clk 0:02:55]} 11. Bd2
{[%clk 0:02:54.4]} 11... Rc8 {[%clk 0:02:54.4]} 12. Rac1 {[%clk 0:02:53.8]}
12... Ba7 {[%clk 0:02:42]} 13. Rfd1 {[%clk 0:02:39.2]} 13... Nc6 {[%clk
0:02:42]} 14. Na4 {[%clk 0:02:31]} 14... Ke8 {[%clk 0:02:32]} 15. Nc5 {[%clk
0:02:22.6]} 15... Bxc5 {[%clk 0:02:30.3]} 16. Rxc5 {[%clk 0:02:23.5]} 16... Ne4
{[%clk 0:02:30.4]} 17. Rcc1 {[%clk 0:02:20.8]} 17... Nxd2 {[%clk 0:02:30.1]} 18.
Nxd2 {[%clk 0:02:21.2]} 18... Nb4 {[%clk 0:02:11]} 19. Nc4 {[%clk 0:02:15.2]}
19... Ke7 {[%clk 0:02:05.9]} 20. a3 {[%clk 0:01:54.3]} 20... Nd5 {[%clk
0:01:58.4]} 21. Bf3 {[%clk 0:01:51.4]} 21... Ba4 {[%clk 0:01:21]} 22. Bxd5
{[%clk 0:01:30.6]} 22... Bxd1 {[%clk 0:00:51]} 23. Bxb7 {[%clk 0:01:22.8]} 23...
Be2 {[%clk 0:00:30.4]} 24. Bxa8 {[%clk 0:01:20.1]} 24... Rxc4 {[%clk 0:00:27.3]}
25. Rxc4 {[%clk 0:01:14.1]} 25... Bxc4 {[%clk 0:00:28.2]} 26. f3 {[%clk
0:00:45.5]} 26... Kd6 {[%clk 0:00:27.8]} 27. Kf2 {[%clk 0:00:45.3]} 27... Kc5
{[%clk 0:00:28]} 28. Ke1 {[%clk 0:00:44.3]} 28... a5 {[%clk 0:00:28.4]} 29. Kd2
{[%clk 0:00:44.3]} 29... e5 {[%clk 0:00:27.3]} 30. Kc3 {[%clk 0:00:41.3]} 30...
Bf1 {[%clk 0:00:27.2]} 31. g3 {[%clk 0:00:41.7]} 31... f6 {[%clk 0:00:27.3]} 32.
Be4 {[%clk 0:00:40.4]} 32... h6 {[%clk 0:00:26.3]} 33. f4 {[%clk 0:00:39.4]}
33... g5 {[%clk 0:00:26.1]} 34. fxg5 {[%clk 0:00:37.4]} 34... fxg5 {[%clk
0:00:25.5]} 35. b4+ {[%clk 0:00:37.8]} 35... axb4+ {[%clk 0:00:24.9]} 36. axb4+
{[%clk 0:00:38.7]} 36... Kd6 {[%clk 0:00:21]} 37. Bd3 {[%clk 0:00:37.8]} 37...
Bg2 {[%clk 0:00:20.7]} 38. Bc4 {[%clk 0:00:28.2]} 38... Be4 {[%clk 0:00:18.8]}
39. Kb3 {[%clk 0:00:27.5]} 39... Kc6 {[%clk 0:00:17.8]} 40. Bf7 {[%clk
0:00:23.5]} 40... Kb5 {[%clk 0:00:16.6]} 41. Be8+ {[%clk 0:00:23]} 41... Kb6
{[%clk 0:00:16.8]} 42. Kc4 {[%clk 0:00:23.7]} 42... Bf3 {[%clk 0:00:16.1]} 43.
Bf7 {[%clk 0:00:22.8]} 43... Be4 {[%clk 0:00:16.1]} 44. Be6 {[%clk 0:00:22.8]}
44... Bf3 {[%clk 0:00:16.2]} 45. Bf5 {[%clk 0:00:23.5]} 45... Bc6 {[%clk
0:00:16.1]} 46. Bg6 {[%clk 0:00:19.6]} 46... Bf3 {[%clk 0:00:15.5]} 47. e4
{[%clk 0:00:18.7]} 47... Kc6 {[%clk 0:00:10.2]} 48. Be8+ {[%clk 0:00:18.1]}
48... Kd6 {[%clk 0:00:09.9]} 49. Bg6 {[%clk 0:00:13.9]} 49... Be2+ {[%clk
0:00:10.2]} 50. Kb3 {[%clk 0:00:14.5]} 50... Kc6 {[%clk 0:00:10.8]} 51. Be8+
{[%clk 0:00:12.5]} 51... Kb6 {[%clk 0:00:11.1]} 52. Bf7 {[%clk 0:00:12.3]} 52...
Bd3 {[%clk 0:00:11.3]} 53. Bd5 {[%clk 0:00:12]} 53... Kb5 {[%clk 0:00:11.3]} 54.
Kc3 {[%clk 0:00:12.3]} 54... Be2 {[%clk 0:00:11.4]} 55. Bf7 {[%clk 0:00:12.3]}
55... Kb6 {[%clk 0:00:11.3]} 56. Be8 {[%clk 0:00:12.8]} 56... Bf3 {[%clk
0:00:10.5]} 57. Bg6 {[%clk 0:00:12.6]} 57... Be2 {[%clk 0:00:10.7]} 58. Bf5
{[%clk 0:00:13.2]} 58... Bf1 {[%clk 0:00:10.3]} 59. h4 {[%clk 0:00:14.1]} 59...
gxh4 {[%clk 0:00:09.1]} 60. gxh4 {[%clk 0:00:15]} 60... Be2 {[%clk 0:00:09.4]}
61. Be6 {[%clk 0:00:14.5]} 61... Kb5 {[%clk 0:00:09]} 62. Bd5 {[%clk 0:00:14.2]}
62... Bf1 {[%clk 0:00:08.9]} 63. Bf7 {[%clk 0:00:13.3]} 63... Be2 {[%clk
0:00:09.1]} 64. Be8+ {[%clk 0:00:12.7]} 64... Kb6 {[%clk 0:00:09.5]} 65. Kd2
{[%clk 0:00:11.8]} 65... Bf1 {[%clk 0:00:09.7]} 66. Ke3 {[%clk 0:00:12.1]} 66...
Kc7 {[%clk 0:00:06.9]} 67. Kf3 {[%clk 0:00:12.2]} 67... Bd3 {[%clk 0:00:05.8]}
68. Bf7 {[%clk 0:00:10.4]} 68... Kb6 {[%clk 0:00:05.7]} 69. Be8 {[%clk
0:00:09.2]} 69... Bc2 {[%clk 0:00:05.5]} 70. b5 {[%clk 0:00:08.5]} 70... Kc5
{[%clk 0:00:05.4]} 71. Bc6 {[%clk 0:00:08.8]} 71... Bd3 {[%clk 0:00:05.5]} 72.
Kg4 {[%clk 0:00:09.1]} 72... Bxb5 {[%clk 0:00:05]} 73. Bxb5 {[%clk 0:00:08.3]}
73... Kxb5 {[%clk 0:00:05.9]} 74. Kf5 {[%clk 0:00:08.9]} 74... Kc5 {[%clk
0:00:06.3]} 75. Kxe5 {[%clk 0:00:09.5]} 1-0

[Event "Early-Titled-Tuesday-Blitz-May-28-2024"]
[Site "Chess.com"]
[Date "2024.05.28"]
[Round "2"]
[White "KnightmareJoker"]
[Black "rookpower2004"]
[Result "1/2-1/2"]
[WhiteElo "2302"]
[BlackElo "2510"]
[TimeControl "180+1"]
[EndTime "8:20:16 PDT"]
[Termination "Game drawn by stalemate"]

1. e4 {[%clk 0:02:59.8]} 1... e5 {[%clk 0:02:58.4]} 2. Nf3 {[%clk 0:02:59.7]}
2... Nc6 {[%clk 0:02:57.4]} 3. Bc4 {[%clk 0:02:59.8]} 3... Bc5 {[%clk
0:02:56.5]} 4. c3 {[%clk 0:02:59.6]} 4... Nf6 {[%clk 0:02:55.7]} 5. d4 {[%clk
0:03:00.1]} 5... exd4 {[%clk 0:02:55.3]} 6. cxd4 {[%clk 0:02:59.3]} 6... Bb4+
{[%clk 0:02:55.3]} 7. Nc3 {[%clk 0:02:52.4]} 7... Nxe4 {[%clk 0:02:53.3]} 8. O-O
{[%clk 0:02:52.8]} 8... Bxc3 {[%clk 0:02:52.7]} 9. d5 {[%clk 0:02:48.3]} 9...
Bf6 {[%clk 0:02:52.2]} 10. Re1 {[%clk 0:02:39.6]} 10... Ne7 {[%clk 0:02:43.4]}
11. Rxe4 {[%clk 0:02:31]} 11... O-O {[%clk 0:02:27.2]} 12. d6 {[%clk 0:02:25.4]}
12... cxd6 {[%clk 0:02:13.6]} 13. Qxd6 {[%clk 0:02:21.4]} 13... Nf5 {[%clk
0:02:14.1]} 14. Qd1 {[%clk 0:02:00]} 14... d5 {[%clk 0:02:00.3]} 15. Qxd5 {[%clk
0:01:48.6]} 15... Nd6 {[%clk 0:01:54.5]} 16. Re1 {[%clk 0:01:37.1]} 16... Be6
{[%clk 0:01:49.2]} 17. Rxe6 {[%clk 0:01:36.9]} 17... fxe6 {[%clk 0:01:50.1]} 18.
Qxe6+ {[%clk 0:01:34]} 18... Kh8 {[%clk 0:01:51]} 19. Bb3 {[%clk 0:01:24.3]}
19... Re8 {[%clk 0:01:47]} 20. Qd5 {[%clk 0:01:14.5]} 20... Qe7 {[%clk 0:01:32]}
21. Bf4 {[%clk 0:01:08.9]} 21... Rad8 {[%clk 0:01:31.9]} 22. Qh5 {[%clk
0:00:54.5]} 22... Qe4 {[%clk 0:00:31.9]} 23. Bd2 {[%clk 0:00:30.6]} 23... Qf5
{[%clk 0:00:30.8]} 24. Qxf5 {[%clk 0:00:27.4]} 24... Nxf5 {[%clk 0:00:31.7]} 25.
Rb1 {[%clk 0:00:25.4]} 25... Nd4 {[%clk 0:00:27.9]} 26. Nxd4 {[%clk 0:00:25.4]}
26... Rxd4 {[%clk 0:00:26.2]} 27. Be3 {[%clk 0:00:24.1]} 27... Rde4 {[%clk
0:00:25.4]} 28. h3 {[%clk 0:00:20.8]} 28... b6 {[%clk 0:00:20.6]} 29. Rd1 {[%clk
0:00:19.5]} 29... R4e7 {[%clk 0:00:19.6]} 30. Ba4 {[%clk 0:00:18.5]} 30... Rc8
{[%clk 0:00:18.8]} 31. Rd2 {[%clk 0:00:11.6]} 31... Rc1+ {[%clk 0:00:17.6]} 32.
Kh2 {[%clk 0:00:12]} 32... Rc4 {[%clk 0:00:17.7]} 33. Bb3 {[%clk 0:00:11.9]}
33... Rc8 {[%clk 0:00:17.4]} 34. g3 {[%clk 0:00:11.9]} 34... h6 {[%clk
0:00:15.9]} 35. Bc2 {[%clk 0:00:10.4]} 35... Ree8 {[%clk 0:00:15.2]} 36. Bg6
{[%clk 0:00:10.4]} 36... Red8 {[%clk 0:00:15.1]} 37. Re2 {[%clk 0:00:11]} 37...
Rc7 {[%clk 0:00:12.5]} 38. Bf4 {[%clk 0:00:10.4]} 38... Re7 {[%clk 0:00:12.5]}
39. Rc2 {[%clk 0:00:09.7]} 39... Re1 {[%clk 0:00:11.1]} 40. Kg2 {[%clk
0:00:08.2]} 40... Rb1 {[%clk 0:00:11.3]} 41. b3 {[%clk 0:00:06.3]} 41... Rb2
{[%clk 0:00:11.4]} 42. Rc7 {[%clk 0:00:03.9]} 42... Bd4 {[%clk 0:00:11.4]} 43.
Kf3 {[%clk 0:00:02.2]} 43... Rxf2+ {[%clk 0:00:10]} 44. Kg4 {[%clk 0:00:02.9]}
44... Bc5 {[%clk 0:00:09]} 45. Rxa7 {[%clk 0:00:02]} 45... Re2 {[%clk
0:00:06.9]} 46. Bh5 {[%clk 0:00:01.3]} 46... Re7 {[%clk 0:00:07.3]} 47. Ra6
{[%clk 0:00:01]} 47... Red7 {[%clk 0:00:05.7]} 48. Bg6 {[%clk 0:00:01.4]} 48...
Rd5 {[%clk 0:00:04.9]} 49. Be4 {[%clk 0:00:01.5]} 49... Rd1 {[%clk 0:00:02.7]}
50. Ra7 {[%clk 0:00:01.4]} 50... R1d7 {[%clk 0:00:02.1]} 51. Bf5 {[%clk
0:00:01.8]} 51... Rxa7 {[%clk 0:00:01.8]} 52. h4 {[%clk 0:00:02.5]} 52... Rxa2
{[%clk 0:00:01.6]} 53. Be4 {[%clk 0:00:02.9]} 53... Rb2 {[%clk 0:00:01.8]} 54.
Bf3 {[%clk 0:00:02.2]} 54... Rxb3 {[%clk 0:00:02]} 55. Be4 {[%clk 0:00:03.1]}
55... Rb2 {[%clk 0:00:02.2]} 56. Be5 {[%clk 0:00:03.2]} 56... Rb4 {[%clk
0:00:02.8]} 57. Kf5 {[%clk 0:00:02.9]} 57... Rf8+ {[%clk 0:00:02.7]} 58. Kg6
{[%clk 0:00:01.8]} 58... Rxe4 {[%clk 0:00:03.2]} 59. Bf4 {[%clk 0:00:01.3]}
59... Rexf4 {[%clk 0:00:02.3]} 60. gxf4 {[%clk 0:00:01.3]} 60... Rf6+ {[%clk
0:00:02.9]} 61. Kh5 {[%clk 0:00:01.5]} 61... Rxf4 {[%clk 0:00:03.8]} 62. Kg6
{[%clk 0:00:02]} 62... b5 {[%clk 0:00:04.4]} 63. h5 {[%clk 0:00:02.4]} 63... b4
{[%clk 0:00:05]} 1/2-1/2

[Event "Early-Titled-Tuesday-Blitz-May-28-2024"]
[Site "Chess.com"]
[Date "2024.05.28"]
[Round "2"]
[White "VacheH009"]
[Black "EvgenyBurmakin"]
[Result "1/2-1/2"]
[WhiteElo "2543"]
[BlackElo "2345"]
[TimeControl "180+1"]
[EndTime "8:20:40 PDT"]
[Termination "Game drawn - insufficient material"]

1. c4 {[%clk 0:03:00.9]} 1... b6 {[%clk 0:02:59.6]} 2. d4 {[%clk 0:02:58.4]}
2... e6 {[%clk 0:02:59.9]} 3. Nf3 {[%clk 0:02:56.5]} 3... Bb7 {[%clk 0:02:58.8]}
4. g3 {[%clk 0:02:56.8]} 4... f5 {[%clk 0:02:58.9]} 5. Bg2 {[%clk 0:02:56.1]}
5... Nf6 {[%clk 0:02:59.2]} 6. O-O {[%clk 0:02:56]} 6... Be7 {[%clk 0:02:58.9]}
7. b3 {[%clk 0:02:47.7]} 7... O-O {[%clk 0:02:57.7]} 8. Bb2 {[%clk 0:02:47.4]}
8... d6 {[%clk 0:02:43.3]} 9. Re1 {[%clk 0:02:42.9]} 9... Qc8 {[%clk 0:02:35.2]}
10. Nc3 {[%clk 0:02:20.7]} 10... Nc6 {[%clk 0:02:18.2]} 11. d5 {[%clk
0:02:16.5]} 11... Ne5 {[%clk 0:02:01.8]} 12. Nd4 {[%clk 0:02:10.6]} 12... exd5
{[%clk 0:01:53.8]} 13. cxd5 {[%clk 0:02:11.5]} 13... Qd7 {[%clk 0:01:27.2]} 14.
Ne6 {[%clk 0:02:01.7]} 14... Rf7 {[%clk 0:01:27.3]} 15. e4 {[%clk 0:01:45.9]}
15... fxe4 {[%clk 0:01:27]} 16. Nxe4 {[%clk 0:01:44.6]} 16... Nxe4 {[%clk
0:01:26.7]} 17. Bxe4 {[%clk 0:01:41.1]} 17... Bf6 {[%clk 0:01:13.8]} 18. f4
{[%clk 0:01:32.7]} 18... Nf3+ {[%clk 0:01:03.4]} 19. Bxf3 {[%clk 0:01:17]} 19...
Bxb2 {[%clk 0:01:03.5]} 20. Rb1 {[%clk 0:01:17.6]} 20... Bc3 {[%clk 0:01:00.9]}
21. Re3 {[%clk 0:01:15.7]} 21... Bf6 {[%clk 0:00:55.5]} 22. Rc1 {[%clk
0:01:13.7]} 22... Rc8 {[%clk 0:00:50.2]} 23. Re2 {[%clk 0:00:56.6]} 23... c6
{[%clk 0:00:47.3]} 24. dxc6 {[%clk 0:00:43.3]} 24... Bxc6 {[%clk 0:00:46.1]} 25.
Qc2 {[%clk 0:00:32.6]} 25... Bb7 {[%clk 0:00:36.8]} 26. Qxc8+ {[%clk 0:00:11.3]}
26... Bxc8 {[%clk 0:00:37.7]} 27. Bd5 {[%clk 0:00:11.6]} 27... Bb7 {[%clk
0:00:16.6]} 28. Bc4 {[%clk 0:00:09]} 28... b5 {[%clk 0:00:15.9]} 29. Bd3 {[%clk
0:00:08.7]} 29... Re7 {[%clk 0:00:13.1]} 30. f5 {[%clk 0:00:07.7]} 30... Bd5
{[%clk 0:00:12.4]} 31. Rce1 {[%clk 0:00:06.4]} 31... Bxe6 {[%clk 0:00:11.2]} 32.
fxe6 {[%clk 0:00:07.3]} 32... Qc6 {[%clk 0:00:10.4]} 33. Be4 {[%clk 0:00:07.8]}
33... Qc5+ {[%clk 0:00:10.2]} 34. Kg2 {[%clk 0:00:07.7]} 34... g6 {[%clk
0:00:08.8]} 35. Rd1 {[%clk 0:00:03.9]} 35... Qe5 {[%clk 0:00:08.2]} 36. Bf3
{[%clk 0:00:02.9]} 36... Kg7 {[%clk 0:00:08.1]} 37. Rxe5 {[%clk 0:00:02.7]}
37... Bxe5 {[%clk 0:00:09]} 38. Bd5 {[%clk 0:00:03.3]} 38... Kf6 {[%clk
0:00:09]} 39. Rf1+ {[%clk 0:00:03.9]} 39... Kg7 {[%clk 0:00:09.5]} 40. Rc1
{[%clk 0:00:04]} 40... Kf6 {[%clk 0:00:09.1]} 41. Rc6 {[%clk 0:00:04.2]} 41...
Bd4 {[%clk 0:00:08.4]} 42. Kf3 {[%clk 0:00:04.8]} 42... Ke5 {[%clk 0:00:08.6]}
43. Be4 {[%clk 0:00:03.9]} 43... Rxe6 {[%clk 0:00:08.8]} 44. Bd3 {[%clk
0:00:04.5]} 44... Re7 {[%clk 0:00:08.9]} 45. Ra6 {[%clk 0:00:04]} 45... Bb6
{[%clk 0:00:08.9]} 46. Bxb5 {[%clk 0:00:03.9]} 46... Kd4 {[%clk 0:00:09.4]} 47.
Kg4 {[%clk 0:00:02.4]} 47... h6 {[%clk 0:00:09.4]} 48. Kh3 {[%clk 0:00:01.5]}
48... h5 {[%clk 0:00:08.6]} 49. Ra4+ {[%clk 0:00:02]} 49... Kc5 {[%clk
0:00:08.5]} 50. Bf1 {[%clk 0:00:02.5]} 50... Re1 {[%clk 0:00:08.1]} 51. Rc4+
{[%clk 0:00:02.9]} 51... Kd5 {[%clk 0:00:08]} 52. Bd3 {[%clk 0:00:03.8]} 52...
Rd1 {[%clk 0:00:07.8]} 53. Bxg6 {[%clk 0:00:03.8]} 53... Rd2 {[%clk 0:00:08]}
54. Bxh5 {[%clk 0:00:02.7]} 54... Rxa2 {[%clk 0:00:07.4]} 55. Bf3+ {[%clk
0:00:03.1]} 55... Ke5 {[%clk 0:00:07.1]} 56. Kg4 {[%clk 0:00:02.9]} 56... Rxh2
{[%clk 0:00:06.4]} 57. Kg5 {[%clk 0:00:03.4]} 57... Ke6 {[%clk 0:00:04.7]} 58.
Bg4+ {[%clk 0:00:02.7]} 58... Kd5 {[%clk 0:00:04.8]} 59. Bf3+ {[%clk 0:00:03]}
59... Ke6 {[%clk 0:00:05.2]} 60. Re4+ {[%clk 0:00:03.1]} 60... Kd7 {[%clk
0:00:04.8]} 61. Kf6 {[%clk 0:00:03.6]} 61... Rf2 {[%clk 0:00:03.7]} 62. Rf4
{[%clk 0:00:03.4]} 62... Be3 {[%clk 0:00:02.6]} 63. Rf5 {[%clk 0:00:03.8]} 63...
Bc5 {[%clk 0:00:02.4]} 64. g4 {[%clk 0:00:03.6]} 64... Kc7 {[%clk 0:00:02.5]}
65. g5 {[%clk 0:00:03.2]} 65... Bd4+ {[%clk 0:00:02.9]} 66. Kf7 {[%clk
0:00:03.5]} 66... Rf1 {[%clk 0:00:03.1]} 67. g6 {[%clk 0:00:03.3]} 67... Rg1
{[%clk 0:00:03.5]} 68. Bd5 {[%clk 0:00:02.6]} 68... Kb6 {[%clk 0:00:03.7]} 69.
Bc4 {[%clk 0:00:02.4]} 69... a6 {[%clk 0:00:03.3]} 70. Rd5 {[%clk 0:00:03]}
70... Be5 {[%clk 0:00:03]} 71. Rxe5 {[%clk 0:00:01.9]} 71... dxe5 {[%clk
0:00:02.3]} 72. g7 {[%clk 0:00:02.8]} 72... Rxg7+ {[%clk 0:00:01.9]} 73. Kxg7
{[%clk 0:00:03.7]} 73... e4 {[%clk 0:00:02]} 74. Kf6 {[%clk 0:00:03.7]} 74...
Kc5 {[%clk 0:00:02.9]} 75. Ke5 {[%clk 0:00:04.1]} 75... e3 {[%clk 0:00:03]} 76.
Ke4 {[%clk 0:00:04.7]} 76... a5 {[%clk 0:00:03.6]} 77. Kxe3 {[%clk 0:00:03.9]}
77... a4 {[%clk 0:00:03.2]} 78. bxa4 {[%clk 0:00:04]} 78... Kxc4 {[%clk
0:00:03.4]} 79. a5 {[%clk 0:00:04.9]} 79... Kb5 {[%clk 0:00:03.9]} 80. a6 {[%clk
0:00:04.2]} 80... Kxa6 {[%clk 0:00:04.8]} 1/2-1/2

[Event "Early-Titled-Tuesday-Blitz-May-28-2024"]
[Site "Chess.com"]
[Date "2024.05.28"]
[Round "2"]
[White "conformalfunction"]
[Black "joksijoksi"]
[Result "1-0"]
[WhiteElo "2339"]
[BlackElo "2525"]
[TimeControl "180+1"]
[EndTime "8:20:40 PDT"]
[Termination "conformalfunction won on time"]

1. e4 {[%clk 0:03:00.9]} 1... e6 {[%clk 0:02:50.9]} 2. d4 {[%clk 0:03:00.8]}
2... d5 {[%clk 0:02:51.8]} 3. exd5 {[%clk 0:03:01.6]} 3... exd5 {[%clk
0:02:50.7]} 4. Bd3 {[%clk 0:03:02.5]} 4... Bd6 {[%clk 0:02:48.4]} 5. Nf3 {[%clk
0:03:02.4]} 5... Ne7 {[%clk 0:02:48.3]} 6. c3 {[%clk 0:03:00.9]} 6... Bf5 {[%clk
0:02:47.9]} 7. O-O {[%clk 0:02:57.9]} 7... Bxd3 {[%clk 0:02:47.2]} 8. Qxd3
{[%clk 0:02:58.8]} 8... O-O {[%clk 0:02:47.3]} 9. Bg5 {[%clk 0:02:58.2]} 9... h6
{[%clk 0:02:43.3]} 10. Bh4 {[%clk 0:02:58.4]} 10... Qd7 {[%clk 0:02:37.3]} 11.
Bg3 {[%clk 0:02:58.4]} 11... Nbc6 {[%clk 0:02:34.2]} 12. Nbd2 {[%clk 0:02:57.4]}
12... Rae8 {[%clk 0:02:33.5]} 13. Rfe1 {[%clk 0:02:57.7]} 13... Nf5 {[%clk
0:02:30.2]} 14. Bxd6 {[%clk 0:02:56.7]} 14... Nxd6 {[%clk 0:02:27.9]} 15. Kf1
{[%clk 0:02:54.8]} 15... Rxe1+ {[%clk 0:02:26.1]} 16. Rxe1 {[%clk 0:02:54.4]}
16... Re8 {[%clk 0:02:20.3]} 17. Rxe8+ {[%clk 0:02:54.9]} 17... Qxe8 {[%clk
0:02:14.1]} 18. Qe2 {[%clk 0:02:55.8]} 18... Qxe2+ {[%clk 0:02:08.6]} 19. Kxe2
{[%clk 0:02:56.7]} 19... Kf8 {[%clk 0:02:09]} 20. Ke3 {[%clk 0:02:28.8]} 20...
Ke7 {[%clk 0:02:07]} 21. b3 {[%clk 0:02:27.1]} 21... Ke6 {[%clk 0:02:05.4]} 22.
Ne1 {[%clk 0:02:27.4]} 22... Nf5+ {[%clk 0:02:00.3]} 23. Ke2 {[%clk 0:02:12.1]}
23... g5 {[%clk 0:01:54.1]} 24. Nd3 {[%clk 0:02:12.1]} 24... b6 {[%clk
0:01:51.7]} 25. Nf3 {[%clk 0:02:09.3]} 25... f6 {[%clk 0:01:47.1]} 26. g3 {[%clk
0:02:09.6]} 26... Nd6 {[%clk 0:01:40.8]} 27. Nd2 {[%clk 0:02:09.4]} 27... Ne4
{[%clk 0:01:37.6]} 28. Nb1 {[%clk 0:01:58.9]} 28... h5 {[%clk 0:01:25]} 29. f3
{[%clk 0:01:57.9]} 29... Nd6 {[%clk 0:01:24.5]} 30. Nd2 {[%clk 0:01:58]} 30...
a5 {[%clk 0:01:22.3]} 31. Ke3 {[%clk 0:01:51]} 31... Kf5 {[%clk 0:01:21.6]} 32.
h3 {[%clk 0:01:49.9]} 32... h4 {[%clk 0:01:16.5]} 33. g4+ {[%clk 0:01:49.7]}
33... Ke6 {[%clk 0:01:16]} 34. f4 {[%clk 0:01:48.5]} 34... a4 {[%clk 0:01:11.2]}
35. bxa4 {[%clk 0:01:25.6]} 35... Na5 {[%clk 0:01:10.4]} 36. Nb2 {[%clk
0:01:21.3]} 36... c5 {[%clk 0:01:06.6]} 37. fxg5 {[%clk 0:01:09.7]} 37... fxg5
{[%clk 0:01:05.9]} 38. dxc5 {[%clk 0:01:08.5]} 38... bxc5 {[%clk 0:01:04.4]} 39.
Nb3 {[%clk 0:01:02.2]} 39... Ndc4+ {[%clk 0:00:54.7]} 40. Nxc4 {[%clk 0:01:02]}
40... Nxc4+ {[%clk 0:00:55.6]} 41. Ke2 {[%clk 0:00:50.1]} 41... Kd6 {[%clk
0:00:54.4]} 42. a5 {[%clk 0:00:50.2]} 42... Kc6 {[%clk 0:00:48.5]} 43. a6 {[%clk
0:00:48.2]} 43... Nb6 {[%clk 0:00:43.4]} 44. a7 {[%clk 0:00:46.9]} 44... Na8
{[%clk 0:00:42.3]} 45. Ke3 {[%clk 0:00:34.8]} 45... Nc7 {[%clk 0:00:40.5]} 46.
a4 {[%clk 0:00:33.6]} 46... Kb6 {[%clk 0:00:40.2]} 47. a5+ {[%clk 0:00:29.4]}
47... Kb5 {[%clk 0:00:40.4]} 48. a6 {[%clk 0:00:26.6]} 48... Kc4 {[%clk
0:00:36.9]} 49. Nd2+ {[%clk 0:00:06.4]} 49... Kxc3 {[%clk 0:00:36.8]} 50. Nf3
{[%clk 0:00:05.9]} 50... d4+ {[%clk 0:00:36.9]} 51. Ke2 {[%clk 0:00:06.5]} 51...
Kc2 {[%clk 0:00:31.6]} 52. Ne1+ {[%clk 0:00:04.4]} 52... Kc3 {[%clk 0:00:32.1]}
53. Nf3 {[%clk 0:00:04.7]} 53... Kc2 {[%clk 0:00:32.6]} 54. Ne1+ {[%clk
0:00:04.9]} 54... Kb3 {[%clk 0:00:33.2]} 55. Kd3 {[%clk 0:00:04.2]} 55... Na8
{[%clk 0:00:23.9]} 56. Nf3 {[%clk 0:00:04.6]} 56... Nb6 {[%clk 0:00:21.4]} 57.
Nxg5 {[%clk 0:00:03.5]} 57... c4+ {[%clk 0:00:22]} 58. Kxd4 {[%clk 0:00:03.8]}
58... c3 {[%clk 0:00:22.9]} 59. Ne4 {[%clk 0:00:02.9]} 59... c2 {[%clk
0:00:23.8]} 60. Nd2+ {[%clk 0:00:03.1]} 60... Kb2 {[%clk 0:00:24.2]} 61. Nc4+
{[%clk 0:00:01]} 61... Nxc4 {[%clk 0:00:23.6]} 62. a8=Q {[%clk 0:00:01]} 62...
c1=Q {[%clk 0:00:22.2]} 63. Qb7+ {[%clk 0:00:01]} 63... Ka3 {[%clk 0:00:10.6]}
64. a7 {[%clk 0:00:01.9]} 64... Qf4+ {[%clk 0:00:08.1]} 65. Kc5 {[%clk
0:00:02.2]} 65... Na5 {[%clk 0:00:04.9]} 66. a8=Q {[%clk 0:00:01.8]} 66... Qc4+
{[%clk 0:00:01.5]} 67. Kb6 {[%clk 0:00:02.4]} 67... Qb4+ {[%clk 0:00:01.5]} 68.
Kc7 {[%clk 0:00:01.7]} 68... Qc5+ {[%clk 0:00:02]} 69. Kb8 {[%clk 0:00:01.8]}
69... Qd6+ {[%clk 0:00:01.4]} 70. Kc8 {[%clk 0:00:02.2]} 70... Qf8+ {[%clk
0:00:01.3]} 71. Kd7 {[%clk 0:00:01.7]} 71... Qf7+ {[%clk 0:00:01.8]} 72. Kc8
{[%clk 0:00:01.8]} 72... Qe8+ {[%clk 0:00:01.9]} 73. Kc7 {[%clk 0:00:02.3]}
73... Qe7+ {[%clk 0:00:02.4]} 74. Kb6 {[%clk 0:00:02.5]} 74... Qb4+ {[%clk
0:00:03]} 75. Kc7 {[%clk 0:00:01.5]} 75... Qe7+ {[%clk 0:00:03]} 76. Kb8 {[%clk
0:00:01]} 76... Qd8+ {[%clk 0:00:02.9]} 77. Qc8 {[%clk 0:00:01.6]} 77... Qb6+
{[%clk 0:00:03.1]} 78. Qab7 {[%clk 0:00:01.1]} 78... Nxb7 {[%clk 0:00:02.8]} 79.
Qxb7 {[%clk 0:00:02]} 79... Qf2 {[%clk 0:00:03]} 80. Qa7+ {[%clk 0:00:02.5]}
80... Qxa7+ {[%clk 0:00:02.2]} 81. Kxa7 {[%clk 0:00:03.4]} 81... Kb4 {[%clk
0:00:03]} 82. g5 {[%clk 0:00:04.3]} 82... Kc5 {[%clk 0:00:03.9]} 83. g6 {[%clk
0:00:05.2]} 83... Kd6 {[%clk 0:00:04.5]} 84. g7 {[%clk 0:00:06.1]} 84... Ke6
{[%clk 0:00:05.2]} 85. g8=Q+ {[%clk 0:00:07]} 1-0